[Event "December 5 Early 2023"]
[Site "https://www.chess.com"]
[Date "2023.12.05"]
[Round "2"]
[White "Franchini, Gabriele"]
[Black "Osmak, Yuliia"]
[Result "0-1"]
[Board "165"]
[TimeControl "180+1"]
[WhiteFideId "806790"]
[BlackFideId "14101602"]
[WhiteElo "2332"]
[BlackElo "2540"]
[WhiteTeam "ITA"]
[BlackTeam "UKR"]
[WhiteClock "0:00:00"]
[BlackClock "0:00:07"]

1. e4 {[%clk 0:03:00]}  c5 {[%clk 0:02:58]} 2. Nf3 {[%clk 0:03:01]}  Nc6 {[%clk 0:02:58]} 3. Bb5 {[%clk 0:03:00]}  g6 {[%clk 0:02:57]} 4. Bxc6 {[%clk 0:03:00]}  dxc6 {[%clk 0:02:57]} 5. d3 {[%clk 0:03:01]}  Bg7 {[%clk 0:02:57]} 6. h3 {[%clk 0:03:01]}  e5 {[%clk 0:02:53]} 7. Be3 {[%clk 0:03:00]}  Qe7 {[%clk 0:02:52]} 8. a4 {[%clk 0:02:58]}  a5 {[%clk 0:02:51]} 9. Na3 {[%clk 0:02:56]}  Nf6 {[%clk 0:02:50]} 10. Nc4 {[%clk 0:02:56]}  Nd7 {[%clk 0:02:50]} 11. Qd2 {[%clk 0:02:50]}  b6 {[%clk 0:02:49]} 12. O-O {[%clk 0:02:42]}  O-O {[%clk 0:02:46]} 13. Nh2 {[%clk 0:02:36]}  Ba6 {[%clk 0:02:41]} 14. Bh6 {[%clk 0:02:23]}  Rfd8 {[%clk 0:02:27]} 15. b3 {[%clk 0:02:22]}  Bh8 {[%clk 0:02:22]} 16. Bg5 {[%clk 0:02:18]}  f6 {[%clk 0:02:20]} 17. Be3 {[%clk 0:02:18]}  g5 {[%clk 0:02:15]} 18. Rfe1 {[%clk 0:02:04]}  Rab8 {[%clk 0:02:11]} 19. Nf1 {[%clk 0:02:04]}  Nf8 {[%clk 0:02:11]} 20. Ng3 {[%clk 0:02:03]}  Bc8 {[%clk 0:02:11]} 21. Nf5 {[%clk 0:01:55]}  Bxf5 {[%clk 0:02:05]} 22. exf5 {[%clk 0:01:56]}  Qd7 {[%clk 0:02:04]} 23. Qe2 {[%clk 0:01:49]}  Qxf5 {[%clk 0:01:59]} 24. Bd2 {[%clk 0:01:38]}  Ne6 {[%clk 0:01:56]} 25. Nxb6 {[%clk 0:01:31]}  Rxb6 {[%clk 0:01:47]} 26. Bxa5 {[%clk 0:01:31]}  Rbb8 {[%clk 0:01:43]} 27. Bxd8 {[%clk 0:01:32]}  Rxd8 {[%clk 0:01:43]} 28. Qg4 {[%clk 0:01:11]}  Qxg4 {[%clk 0:01:37]} 29. hxg4 {[%clk 0:01:12]}  Nd4 {[%clk 0:01:37]} 30. Rac1 {[%clk 0:01:11]}  Bg7 {[%clk 0:01:27]} 31. f3 {[%clk 0:01:12]}  Bf8 {[%clk 0:01:26]} 32. Kf2 {[%clk 0:01:12]}  h6 {[%clk 0:01:26]} 33. Ke3 {[%clk 0:01:08]}  Kf7 {[%clk 0:01:25]} 34. Kd2 {[%clk 0:01:07]}  Ra8 {[%clk 0:01:23]} 35. Rb1 {[%clk 0:01:02]}  Bd6 {[%clk 0:01:11]} 36. c3 {[%clk 0:01:02]}  Ne6 {[%clk 0:01:09]} 37. Ra1 {[%clk 0:00:53]}  Bc7 {[%clk 0:01:02]} 38. Re4 {[%clk 0:00:48]}  Nf4 {[%clk 0:00:54]} 39. g3 {[%clk 0:00:48]}  Nd5 {[%clk 0:00:52]} 40. Rc4 {[%clk 0:00:42]}  Bb6 {[%clk 0:00:44]} 41. b4 {[%clk 0:00:27]}  cxb4 {[%clk 0:00:42]} 42. cxb4 {[%clk 0:00:28]}  Bd4 {[%clk 0:00:41]} 43. Ra2 {[%clk 0:00:24]}  Rb8 {[%clk 0:00:33]} 44. Rxc6 {[%clk 0:00:17]}  Nxb4 {[%clk 0:00:32]} 45. Rc7+ {[%clk 0:00:17]}  Kg6 {[%clk 0:00:32]} 46. Ra3 {[%clk 0:00:16]}  Nd5 {[%clk 0:00:26]} 47. Rc4 {[%clk 0:00:13]}  Ne3 {[%clk 0:00:20]} 48. Ra2 {[%clk 0:00:08]}  Nxc4+ {[%clk 0:00:19]} 49. dxc4 {[%clk 0:00:09]}  f5 {[%clk 0:00:12]} 50. Kd3 {[%clk 0:00:06]}  Rd8 {[%clk 0:00:10]} 51. a5 {[%clk 0:00:04]}  fxg4 {[%clk 0:00:10]} 52. fxg4 {[%clk 0:00:04]}  Bf2+ {[%clk 0:00:08]} 53. Ke2 {[%clk 0:00:04]}  Bxg3 {[%clk 0:00:08]} 54. a6 {[%clk 0:00:04]}  Ra8 {[%clk 0:00:07]} 55. Ke3 {[%clk 0:00:03]}  Bf4+ {[%clk 0:00:07]} 56. Ke4 {[%clk 0:00:04]}  h5 {[%clk 0:00:07]} 57. gxh5+ {[%clk 0:00:04]}  Kxh5 {[%clk 0:00:08]} 58. Kd5 {[%clk 0:00:01]}  g4 {[%clk 0:00:07]} 59. Kc6 {[%clk 0:00:02]}  g3 {[%clk 0:00:07]} 60. Kb7 {[%clk 0:00:00]}  Rg8 {[%clk 0:00:07]} 0-1

[Event "December 5 Early 2023"]
[Site "https://www.chess.com"]
[Date "2023.12.05"]
[Round "2"]
[White "IranianCheetah"]
[Black "Khamdamova, Afruza"]
[Result "0-1"]
[Board "167"]
[TimeControl "180+1"]
[BlackFideId "14210444"]
[WhiteElo "2329"]
[BlackElo "2534"]
[BlackTeam "UZB"]
[WhiteClock "0:00:05"]
[BlackClock "0:02:00"]

1. e4 {[%clk 0:03:00]}  e5 {[%clk 0:03:00]} 2. Nf3 {[%clk 0:03:01]}  Nc6 {[%clk 0:03:00]} 3. Bb5 {[%clk 0:03:01]}  a6 {[%clk 0:03:01]} 4. Bxc6 {[%clk 0:03:01]}  dxc6 {[%clk 0:03:01]} 5. O-O {[%clk 0:03:02]}  f6 {[%clk 0:03:02]} 6. d4 {[%clk 0:03:02]}  exd4 {[%clk 0:03:02]} 7. Nxd4 {[%clk 0:03:03]}  c5 {[%clk 0:03:01]} 8. Ne2 {[%clk 0:03:01]}  Qxd1 {[%clk 0:03:01]} 9. Rxd1 {[%clk 0:03:01]}  Be6 {[%clk 0:02:55]} 10. Bf4 {[%clk 0:02:59]}  Rc8 {[%clk 0:02:51]} 11. Nbc3 {[%clk 0:02:56]}  Ne7 {[%clk 0:02:50]} 12. Rd2 {[%clk 0:02:47]}  Ng6 {[%clk 0:02:40]} 13. Bg3 {[%clk 0:02:46]}  Ne5 {[%clk 0:02:39]} 14. Nf4 {[%clk 0:02:16]}  Bf7 {[%clk 0:02:36]} 15. b3 {[%clk 0:02:02]}  Bd6 {[%clk 0:02:35]} 16. Rad1 {[%clk 0:01:58]}  h5 {[%clk 0:02:30]} 17. Nfd5 {[%clk 0:01:48]}  h4 {[%clk 0:02:24]} 18. Bf4 {[%clk 0:01:32]}  h3 {[%clk 0:02:24]} 19. Bxe5 {[%clk 0:00:34]}  Bxe5 {[%clk 0:02:21]} 20. g3 {[%clk 0:00:32]}  Bh5 {[%clk 0:02:10]} 21. f4 {[%clk 0:00:20]}  Bxc3 {[%clk 0:02:05]} 22. Nxc3 {[%clk 0:00:17]}  Bxd1 {[%clk 0:02:05]} 23. Rxd1 {[%clk 0:00:16]}  Rd8 {[%clk 0:02:01]} 24. Nd5 {[%clk 0:00:11]}  c6 {[%clk 0:02:01]} 25. Nc7+ {[%clk 0:00:05]}  Ke7 {[%clk 0:02:00]} 0-1

[Event "December 5 Early 2023"]
[Site "https://www.chess.com"]
[Date "2023.12.05"]
[Round "2"]
[White "Gavrilov, Maxim"]
[Black "De Arruda, Leandro Formes"]
[Result "1-0"]
[Board "168"]
[TimeControl "180+1"]
[WhiteFideId "24271454"]
[BlackFideId "22722009"]
[WhiteElo "2533"]
[BlackElo "2327"]
[WhiteTeam "RUS"]
[BlackTeam "BRA"]
[WhiteClock "0:00:32"]
[BlackClock "0:00:14"]

1. d4 {[%clk 0:02:59]}  d5 {[%clk 0:03:00]} 2. c4 {[%clk 0:02:59]}  e6 {[%clk 0:03:00]} 3. Nc3 {[%clk 0:02:59]}  Nf6 {[%clk 0:03:00]} 4. cxd5 {[%clk 0:02:59]}  exd5 {[%clk 0:03:01]} 5. Bg5 {[%clk 0:02:59]}  c6 {[%clk 0:03:01]} 6. e3 {[%clk 0:03:00]}  Be7 {[%clk 0:03:02]} 7. Bd3 {[%clk 0:03:00]}  Ne4 {[%clk 0:03:02]} 8. Bf4 {[%clk 0:02:52]}  f5 {[%clk 0:03:01]} 9. Nf3 {[%clk 0:02:39]}  O-O {[%clk 0:03:01]} 10. Ne5 {[%clk 0:02:34]}  Nd7 {[%clk 0:03:00]} 11. O-O {[%clk 0:02:26]}  Nxe5 {[%clk 0:03:00]} 12. Bxe5 {[%clk 0:02:26]}  Bd6 {[%clk 0:02:58]} 13. Bxd6 {[%clk 0:02:18]}  Qxd6 {[%clk 0:02:59]} 14. f3 {[%clk 0:02:18]}  Ng5 {[%clk 0:02:52]} 15. Qd2 {[%clk 0:02:13]}  Bd7 {[%clk 0:02:51]} 16. Rae1 {[%clk 0:02:09]}  Rae8 {[%clk 0:02:45]} 17. Bb1 {[%clk 0:02:06]}  f4 {[%clk 0:02:39]} 18. e4 {[%clk 0:01:48]}  dxe4 {[%clk 0:02:36]} 19. fxe4 {[%clk 0:01:48]}  f3 {[%clk 0:02:35]} 20. Qxg5 {[%clk 0:01:40]}  fxg2 {[%clk 0:02:14]} 21. Kxg2 {[%clk 0:01:34]}  Qb4 {[%clk 0:01:31]} 22. Qd2 {[%clk 0:01:22]}  Re6 {[%clk 0:01:11]} 23. Kh1 {[%clk 0:01:16]}  Rh6 {[%clk 0:01:04]} 24. Rg1 {[%clk 0:00:57]}  Rhf6 {[%clk 0:00:36]} 25. e5 {[%clk 0:00:47]}  Rf2 {[%clk 0:00:35]} 26. Qg5 {[%clk 0:00:45]}  g6 {[%clk 0:00:27]} 27. Bxg6 {[%clk 0:00:41]}  Qxb2 {[%clk 0:00:14]} 28. Bh5+ {[%clk 0:00:32]} 1-0

[Event "December 5 Early 2023"]
[Site "https://www.chess.com"]
[Date "2023.12.05"]
[Round "2"]
[White "Ozates, Tuna"]
[Black "Korol, Dimitry"]
[Result "1-0"]
[Board "171"]
[TimeControl "180+1"]
[WhiteFideId "6354521"]
[BlackFideId "14108003"]
[WhiteElo "2530"]
[BlackElo "2313"]
[WhiteTeam "TUR"]
[BlackTeam "UKR"]
[WhiteClock "0:01:37"]
[BlackClock "0:00:00"]

1. e4 {[%clk 0:02:55]}  c5 {[%clk 0:03:00]} 2. Nf3 {[%clk 0:02:56]}  d6 {[%clk 0:03:00]} 3. Bb5+ {[%clk 0:02:56]}  Nd7 {[%clk 0:02:59]} 4. c3 {[%clk 0:02:55]}  Nf6 {[%clk 0:03:00]} 5. Qe2 {[%clk 0:02:53]}  g6 {[%clk 0:02:54]} 6. d4 {[%clk 0:02:53]}  cxd4 {[%clk 0:02:54]} 7. cxd4 {[%clk 0:02:54]}  Bg7 {[%clk 0:02:53]} 8. Nc3 {[%clk 0:02:54]}  O-O {[%clk 0:02:52]} 9. O-O {[%clk 0:02:54]}  a6 {[%clk 0:02:15]} 10. Bd3 {[%clk 0:02:53]}  e5 {[%clk 0:01:54]} 11. dxe5 {[%clk 0:02:41]}  Nxe5 {[%clk 0:01:51]} 12. Nxe5 {[%clk 0:02:40]}  dxe5 {[%clk 0:01:52]} 13. f3 {[%clk 0:02:41]}  Be6 {[%clk 0:01:47]} 14. Be3 {[%clk 0:02:40]}  Rc8 {[%clk 0:01:42]} 15. Rfd1 {[%clk 0:02:40]}  Qa5 {[%clk 0:01:42]} 16. a3 {[%clk 0:02:40]}  Bb3 {[%clk 0:01:38]} 17. Rd2 {[%clk 0:02:38]}  Rfd8 {[%clk 0:01:30]} 18. Rc1 {[%clk 0:02:37]}  h6 {[%clk 0:01:23]} 19. Qf2 {[%clk 0:02:37]}  Bf8 {[%clk 0:01:02]} 20. Kh1 {[%clk 0:02:37]}  Bc5 {[%clk 0:00:58]} 21. Re1 {[%clk 0:02:31]}  Kg7 {[%clk 0:00:44]} 22. h3 {[%clk 0:02:28]}  Bxe3 {[%clk 0:00:41]} 23. Rxe3 {[%clk 0:02:21]}  Rd4 {[%clk 0:00:34]} 24. g3 {[%clk 0:02:21]}  Rcd8 {[%clk 0:00:29]} 25. f4 {[%clk 0:02:20]}  Bc4 {[%clk 0:00:17]} 26. Qe2 {[%clk 0:02:10]}  Qc7 {[%clk 0:00:11]} 27. f5 {[%clk 0:02:04]}  Qc6 {[%clk 0:00:07]} 28. Kh2 {[%clk 0:02:03]}  b5 {[%clk 0:00:06]} 29. fxg6 {[%clk 0:01:49]}  fxg6 {[%clk 0:00:07]} 30. Qf3 {[%clk 0:01:41]}  Qd7 {[%clk 0:00:00]} 31. Rf2 {[%clk 0:01:37]} 1-0

[Event "December 5 Early 2023"]
[Site "https://www.chess.com"]
[Date "2023.12.05"]
[Round "2"]
[White "Silva Lucena, Cristian"]
[Black "Umarov, Sabir"]
[Result "1-0"]
[Board "173"]
[TimeControl "180+1"]
[WhiteFideId "2232588"]
[BlackFideId "14200538"]
[WhiteElo "2529"]
[BlackElo "2312"]
[WhiteTeam "ESP"]
[BlackTeam "UZB"]
[WhiteClock "0:00:12"]
[BlackClock "0:00:00"]

1. d4 {[%clk 0:03:00]}  g6 {[%clk 0:03:00]} 2. c4 {[%clk 0:02:52]}  Bg7 {[%clk 0:03:00]} 3. Nc3 {[%clk 0:02:53]}  c6 {[%clk 0:03:01]} 4. Nf3 {[%clk 0:02:50]}  d5 {[%clk 0:03:00]} 5. e3 {[%clk 0:02:50]}  Nf6 {[%clk 0:03:00]} 6. Be2 {[%clk 0:02:50]}  O-O {[%clk 0:03:00]} 7. O-O {[%clk 0:02:50]}  Bf5 {[%clk 0:02:59]} 8. b3 {[%clk 0:02:48]}  Ne4 {[%clk 0:02:53]} 9. Nxe4 {[%clk 0:02:47]}  dxe4 {[%clk 0:02:53]} 10. Ne1 {[%clk 0:02:32]}  c5 {[%clk 0:02:43]} 11. Bb2 {[%clk 0:02:33]}  Nc6 {[%clk 0:02:43]} 12. Nc2 {[%clk 0:02:33]}  Qd7 {[%clk 0:02:13]} 13. Rb1 {[%clk 0:02:26]}  Rad8 {[%clk 0:02:11]} 14. d5 {[%clk 0:02:25]}  Bxb2 {[%clk 0:02:01]} 15. Rxb2 {[%clk 0:02:20]}  Ne5 {[%clk 0:02:00]} 16. Ne1 {[%clk 0:02:13]}  h5 {[%clk 0:01:47]} 17. Rd2 {[%clk 0:02:11]}  e6 {[%clk 0:01:39]} 18. Qa1 {[%clk 0:02:10]}  Qc7 {[%clk 0:01:33]} 19. d6 {[%clk 0:02:00]}  Qa5 {[%clk 0:01:16]} 20. Rd1 {[%clk 0:01:38]}  Nc6 {[%clk 0:01:11]} 21. h3 {[%clk 0:01:38]}  e5 {[%clk 0:01:09]} 22. g4 {[%clk 0:01:15]}  hxg4 {[%clk 0:01:08]} 23. hxg4 {[%clk 0:01:16]}  Be6 {[%clk 0:01:08]} 24. Kg2 {[%clk 0:01:09]}  Rd7 {[%clk 0:01:05]} 25. Qb1 {[%clk 0:01:01]}  f5 {[%clk 0:01:00]} 26. f4 {[%clk 0:00:45]}  Qd8 {[%clk 0:00:47]} 27. fxe5 {[%clk 0:00:31]}  Nxe5 {[%clk 0:00:35]} 28. Qb2 {[%clk 0:00:32]}  Nf7 {[%clk 0:00:20]} 29. Rh1 {[%clk 0:00:30]}  Rxd6 {[%clk 0:00:19]} 30. Rxd6 {[%clk 0:00:25]}  Qxd6 {[%clk 0:00:20]} 31. Qf6 {[%clk 0:00:26]}  Bc8 {[%clk 0:00:17]} 32. Rh8+ {[%clk 0:00:25]}  Nxh8 {[%clk 0:00:17]} 33. Qxd6 {[%clk 0:00:26]}  fxg4 {[%clk 0:00:16]} 34. Qxc5 {[%clk 0:00:23]}  b6 {[%clk 0:00:15]} 35. Qd5+ {[%clk 0:00:23]}  Kg7 {[%clk 0:00:14]} 36. Qd4+ {[%clk 0:00:23]}  Kh6 {[%clk 0:00:14]} 37. Qxe4 {[%clk 0:00:23]}  Bf5 {[%clk 0:00:14]} 38. Qf4+ {[%clk 0:00:22]}  Kg7 {[%clk 0:00:14]} 39. Bxg4 {[%clk 0:00:19]}  Rf6 {[%clk 0:00:08]} 40. Bxf5 {[%clk 0:00:18]}  Rxf5 {[%clk 0:00:08]} 41. Qd4+ {[%clk 0:00:19]}  Kh6 {[%clk 0:00:08]} 42. Nf3 {[%clk 0:00:19]}  Nf7 {[%clk 0:00:08]} 43. e4 {[%clk 0:00:18]}  Rf4 {[%clk 0:00:07]} 44. Kg3 {[%clk 0:00:14]}  g5 {[%clk 0:00:06]} 45. Qd7 {[%clk 0:00:12]}  Rxe4 {[%clk 0:00:00]} 46. Qxf7 {[%clk 0:00:12]} 1-0

[Event "December 5 Early 2023"]
[Site "https://www.chess.com"]
[Date "2023.12.05"]
[Round "2"]
[White "Nissinen, Niilo Man"]
[Black "Baches Garcia, Guillermo"]
[Result "0-1"]
[Board "176"]
[TimeControl "180+1"]
[WhiteFideId "30950767"]
[BlackFideId "2209764"]
[WhiteElo "2308"]
[BlackElo "2526"]
[WhiteTeam "HKG"]
[BlackTeam "ESP"]
[WhiteClock "0:00:02"]
[BlackClock "0:00:40"]

1. e4 {[%clk 0:03:00]}  d5 {[%clk 0:02:59]} 2. exd5 {[%clk 0:03:00]}  Qxd5 {[%clk 0:03:00]} 3. Nc3 {[%clk 0:03:01]}  Qa5 {[%clk 0:03:01]} 4. d4 {[%clk 0:03:01]}  Nf6 {[%clk 0:03:01]} 5. Bd2 {[%clk 0:03:02]}  Bg4 {[%clk 0:03:01]} 6. f3 {[%clk 0:03:02]}  Bd7 {[%clk 0:03:01]} 7. Bc4 {[%clk 0:02:58]}  Qb6 {[%clk 0:03:01]} 8. Nge2 {[%clk 0:02:56]}  e6 {[%clk 0:03:01]} 9. O-O {[%clk 0:02:46]}  Be7 {[%clk 0:03:01]} 10. Kh1 {[%clk 0:02:45]}  O-O {[%clk 0:03:01]} 11. Be3 {[%clk 0:02:34]}  Rd8 {[%clk 0:03:01]} 12. Bb3 {[%clk 0:02:22]}  c5 {[%clk 0:02:55]} 13. Qe1 {[%clk 0:02:16]}  cxd4 {[%clk 0:02:49]} 14. Bxd4 {[%clk 0:02:17]}  Qc7 {[%clk 0:02:32]} 15. Ng3 {[%clk 0:02:15]}  Nc6 {[%clk 0:02:26]} 16. Be3 {[%clk 0:02:11]}  Be8 {[%clk 0:02:17]} 17. f4 {[%clk 0:02:10]}  Nd4 {[%clk 0:02:14]} 18. Bxd4 {[%clk 0:01:33]}  Rxd4 {[%clk 0:02:14]} 19. f5 {[%clk 0:01:34]}  e5 {[%clk 0:02:06]} 20. Qe2 {[%clk 0:01:12]}  Rad8 {[%clk 0:01:40]} 21. Nge4 {[%clk 0:00:51]}  Qc6 {[%clk 0:01:29]} 22. Rae1 {[%clk 0:00:29]}  b5 {[%clk 0:01:28]} 23. Rf3 {[%clk 0:00:18]}  a5 {[%clk 0:01:23]} 24. a4 {[%clk 0:00:17]}  bxa4 {[%clk 0:01:22]} 25. Ba2 {[%clk 0:00:14]}  a3 {[%clk 0:01:19]} 26. bxa3 {[%clk 0:00:13]}  Bxa3 {[%clk 0:01:15]} 27. Nxf6+ {[%clk 0:00:14]}  Qxf6 {[%clk 0:01:14]} 28. Ne4 {[%clk 0:00:14]}  Qh4 {[%clk 0:00:58]} 29. Rxa3 {[%clk 0:00:05]}  Rxe4 {[%clk 0:00:55]} 30. Re3 {[%clk 0:00:03]}  Qxe1+ {[%clk 0:00:41]} 31. Qxe1 {[%clk 0:00:02]}  Rxe3 {[%clk 0:00:41]} 32. Qxe3 {[%clk 0:00:02]}  Rd1+ {[%clk 0:00:40]} 0-1

[Event "December 5 Early 2023"]
[Site "https://www.chess.com"]
[Date "2023.12.05"]
[Round "2"]
[White "Budrewicz, Krzysztof"]
[Black "Tharushi, T H D Niklesha"]
[Result "0-1"]
[Board "179"]
[TimeControl "180+1"]
[WhiteFideId "1127950"]
[BlackFideId "9918264"]
[WhiteElo "2521"]
[BlackElo "2303"]
[WhiteTeam "POL"]
[BlackTeam "SRI"]
[WhiteClock "0:01:21"]
[BlackClock "0:01:37"]

1. d4 {[%clk 0:03:00]}  Nf6 {[%clk 0:02:59]} 2. c4 {[%clk 0:02:56]}  e6 {[%clk 0:02:59]} 3. Nf3 {[%clk 0:02:55]}  Bb4+ {[%clk 0:02:59]} 4. Bd2 {[%clk 0:02:55]}  Qe7 {[%clk 0:02:59]} 5. e3 {[%clk 0:02:54]}  Nc6 {[%clk 0:02:53]} 6. Bd3 {[%clk 0:02:53]}  O-O {[%clk 0:02:53]} 7. O-O {[%clk 0:02:53]}  d6 {[%clk 0:02:53]} 8. Nc3 {[%clk 0:02:52]}  e5 {[%clk 0:02:51]} 9. Bc2 {[%clk 0:02:46]}  e4 {[%clk 0:02:47]} 10. Ng5 {[%clk 0:02:41]}  Bxc3 {[%clk 0:02:46]} 11. Bxc3 {[%clk 0:02:41]}  h6 {[%clk 0:02:46]} 12. Nh3 {[%clk 0:02:41]}  Bxh3 {[%clk 0:02:46]} 13. gxh3 {[%clk 0:02:41]}  d5 {[%clk 0:02:46]} 14. cxd5 {[%clk 0:02:37]}  Nxd5 {[%clk 0:02:47]} 15. Qg4 {[%clk 0:02:36]}  f5 {[%clk 0:02:46]} 16. Qg2 {[%clk 0:02:34]}  Kh8 {[%clk 0:02:36]} 17. Kh1 {[%clk 0:02:34]}  Rf6 {[%clk 0:02:33]} 18. Rg1 {[%clk 0:02:34]}  Qf7 {[%clk 0:02:31]} 19. Bb3 {[%clk 0:02:34]}  Nce7 {[%clk 0:02:31]} 20. Bb4 {[%clk 0:02:29]}  Rg6 {[%clk 0:02:17]} 21. Qf1 {[%clk 0:02:25]}  c6 {[%clk 0:02:02]} 22. Bxe7 {[%clk 0:02:24]}  Rxg1+ {[%clk 0:02:02]} 23. Qxg1 {[%clk 0:02:23]}  Qxe7 {[%clk 0:02:03]} 24. Bxd5 {[%clk 0:02:18]}  cxd5 {[%clk 0:02:04]} 25. Rc1 {[%clk 0:02:18]}  Rf8 {[%clk 0:02:01]} 26. Qg6 {[%clk 0:02:09]}  Qh4 {[%clk 0:01:49]} 27. Qg3 {[%clk 0:02:09]}  Qh5 {[%clk 0:01:48]} 28. Rc7 {[%clk 0:02:07]}  Rf7 {[%clk 0:01:44]} 29. Rc8+ {[%clk 0:01:52]}  Kh7 {[%clk 0:01:44]} 30. Rd8 {[%clk 0:01:51]}  Rf6 {[%clk 0:01:36]} 31. Rd6 {[%clk 0:01:32]}  Qd1+ {[%clk 0:01:35]} 32. Kg2 {[%clk 0:01:32]}  Qf3+ {[%clk 0:01:36]} 33. Kg1 {[%clk 0:01:32]}  Qxg3+ {[%clk 0:01:36]} 34. hxg3 {[%clk 0:01:21]}  Rxd6 {[%clk 0:01:37]} 0-1

[Event "December 5 Early 2023"]
[Site "https://www.chess.com"]
[Date "2023.12.05"]
[Round "2"]
[White "Yelisieiev, Yevhenii"]
[Black "Rose, Felix"]
[Result "1-0"]
[Board "181"]
[TimeControl "180+1"]
[WhiteFideId "14139642"]
[BlackFideId "5105722"]
[WhiteElo "2517"]
[BlackElo "2299"]
[WhiteTeam "GER"]
[BlackTeam "MEX"]
[WhiteClock "0:01:25"]
[BlackClock "0:01:27"]

1. d4 {[%clk 0:03:00]}  d5 {[%clk 0:02:59]} 2. Nf3 {[%clk 0:03:00]}  Nf6 {[%clk 0:02:59]} 3. c4 {[%clk 0:03:00]}  e6 {[%clk 0:02:59]} 4. Nc3 {[%clk 0:03:00]}  Be7 {[%clk 0:02:59]} 5. Bg5 {[%clk 0:02:59]}  Nbd7 {[%clk 0:03:00]} 6. e3 {[%clk 0:02:58]}  h6 {[%clk 0:03:00]} 7. Bh4 {[%clk 0:02:57]}  O-O {[%clk 0:03:01]} 8. Qc2 {[%clk 0:02:57]}  c5 {[%clk 0:03:00]} 9. cxd5 {[%clk 0:02:57]}  Nxd5 {[%clk 0:03:01]} 10. Bxe7 {[%clk 0:02:57]}  Qxe7 {[%clk 0:03:02]} 11. Nxd5 {[%clk 0:02:56]}  exd5 {[%clk 0:03:03]} 12. dxc5 {[%clk 0:02:50]}  Nxc5 {[%clk 0:03:04]} 13. Rc1 {[%clk 0:02:47]}  b6 {[%clk 0:02:56]} 14. Be2 {[%clk 0:02:45]}  Bg4 {[%clk 0:02:56]} 15. O-O {[%clk 0:02:41]}  Rac8 {[%clk 0:02:55]} 16. h3 {[%clk 0:02:32]}  Bh5 {[%clk 0:02:39]} 17. Qf5 {[%clk 0:02:28]}  Bxf3 {[%clk 0:02:15]} 18. Bxf3 {[%clk 0:02:27]}  d4 {[%clk 0:02:14]} 19. exd4 {[%clk 0:02:26]}  Ne6 {[%clk 0:02:14]} 20. Rxc8 {[%clk 0:02:21]}  Rxc8 {[%clk 0:02:09]} 21. d5 {[%clk 0:02:18]}  Rc5 {[%clk 0:01:58]} 22. b4 {[%clk 0:02:14]}  Nd4 {[%clk 0:01:52]} 23. Qd3 {[%clk 0:01:52]}  Nxf3+ {[%clk 0:01:44]} 24. Qxf3 {[%clk 0:01:52]}  Rc2 {[%clk 0:01:41]} 25. a3 {[%clk 0:01:35]}  Qc7 {[%clk 0:01:37]} 26. Rd1 {[%clk 0:01:31]}  Rc3 {[%clk 0:01:27]} 27. d6 {[%clk 0:01:25]} 1-0

[Event "December 5 Early 2023"]
[Site "https://www.chess.com"]
[Date "2023.12.05"]
[Round "2"]
[White "Mejia, Cherry Ann"]
[Black "Andreev, Konstantin"]
[Result "1-0"]
[Board "182"]
[TimeControl "180+1"]
[WhiteFideId "5206880"]
[BlackFideId "24239305"]
[WhiteElo "2296"]
[BlackElo "2517"]
[WhiteTeam "PHI"]
[BlackTeam "ITA"]
[WhiteClock "0:00:52"]
[BlackClock "0:00:20"]

1. e4 {[%clk 0:02:48]}  c5 {[%clk 0:02:59]} 2. Nc3 {[%clk 0:02:48]}  e6 {[%clk 0:02:59]} 3. g3 {[%clk 0:02:48]}  Nc6 {[%clk 0:02:59]} 4. Bg2 {[%clk 0:02:46]}  g6 {[%clk 0:02:57]} 5. d3 {[%clk 0:02:46]}  Bg7 {[%clk 0:02:58]} 6. Be3 {[%clk 0:02:47]}  d6 {[%clk 0:02:56]} 7. Qd2 {[%clk 0:02:47]}  h5 {[%clk 0:02:55]} 8. h3 {[%clk 0:02:47]}  Nge7 {[%clk 0:02:55]} 9. Nge2 {[%clk 0:02:47]}  a6 {[%clk 0:02:54]} 10. O-O {[%clk 0:02:47]}  b5 {[%clk 0:02:51]} 11. f4 {[%clk 0:02:45]}  Bb7 {[%clk 0:02:51]} 12. d4 {[%clk 0:02:30]}  cxd4 {[%clk 0:02:48]} 13. Nxd4 {[%clk 0:02:30]}  O-O {[%clk 0:02:47]} 14. Rad1 {[%clk 0:02:25]}  Qa5 {[%clk 0:02:38]} 15. a3 {[%clk 0:02:15]}  Rfd8 {[%clk 0:02:35]} 16. f5 {[%clk 0:01:54]}  exf5 {[%clk 0:02:30]} 17. exf5 {[%clk 0:01:49]}  gxf5 {[%clk 0:00:54]} 18. Nxf5 {[%clk 0:01:43]}  b4 {[%clk 0:00:44]} 19. axb4 {[%clk 0:01:27]}  Qxb4 {[%clk 0:00:43]} 20. Nxg7 {[%clk 0:01:07]}  Kxg7 {[%clk 0:00:43]} 21. Bh6+ {[%clk 0:01:03]}  Kg8 {[%clk 0:00:43]} 22. Qg5+ {[%clk 0:00:57]}  Ng6 {[%clk 0:00:39]} 23. Bd5 {[%clk 0:00:54]}  Ne5 {[%clk 0:00:36]} 24. Bxf7+ {[%clk 0:00:53]}  Kh8 {[%clk 0:00:20]} 25. Qf6+ {[%clk 0:00:52]} 1-0